Cogmind - Beta 12 @@@ ROGUE MODE // 2023.04.19 @ 03:08:02 Player: kaj Result: Destroyed by S-43 Plague with Heavy Machine Gun Performance ------------- Evolutions (9) 4500 Regions Visited (17) 3400 Robots Destroyed (150) 750 Value Destroyed (6483) 6483 Prototype IDs (31) 620 Alien Tech Used (0) 0 Bonus (770) 770 TOTAL SCORE: 16523 Bonus ------- High Alert Combat Kills 93 Follower Combat Kills 37 Entered DSFs 500 Aligned with FarCom 300 Friendly Fire -160 Cogmind --------- Core Integrity 0/1600 Matter 115/300 Energy 99/100 System Corruption 40% Temperature Cool (0) Movement Core (50) Location -1/Access Parts ------- > --- POWER (2) -------- (None) > --- PROPULSION (6) --- (None) > --- UTILITY (12) ----- Advanced Target Analyzer > --- WEAPON (5) ------- (None) > --- INVENTORY (5) ---- Centrium Leg Centrium Leg High-capacity Matter Pod (200) Long-range Tractor Beam Power Maul Peak State ------------ > --- POWER ------------ Micro Antimatter Reactor Light Quantum Reactor > --- PROPULSION ------- Centrium Leg Centrium Leg Centrium Leg Centrium Leg Centrium Leg High-density Centrium Leg > --- UTILITY ---------- Advanced Heat Sink Advanced Heat Sink Advanced Heat Sink Advanced Heat Sink Medium Storage Unit Advanced Target Analyzer Layered Heavy Armor Plating Advanced Shield Generator > --- WEAPON ----------- Gamma Rifle Heavy Laser Heavy Gauss Cannon Linear Accelerator Power Maul > --- INVENTORY -------- Micro Antimatter Reactor Myomer Leg Myomer Leg Centrium Leg Centrium Leg Compact Wheel High-capacity Matter Pod Long-range Tractor Beam Disruptor Cannon Disruptor Cannon [Rating: 154] Favorites ----------- Power Light Nuclear Core Engine Ion Engine Power Core Light Nuclear Core Reactor Quantum Reactor Propulsion Light Treads Treads Light Treads Leg Centrium Leg Wheel Wheel Hover Unit Antigrav System Flight Unit Field Propulsion Drive Utility High-capacity Storage Unit Device Improved Heat Sink Storage High-capacity Storage Unit Processor Core Analyzer Protection Layered Heavy Armor Plating Weapon Light Assault Rifle Energy Gun Constructs Energy Cannon Disruptor Cannon Ballistic Gun Light Assault Rifle Ballistic Cannon Slug Cannon Launcher Mini Grenade Launcher Impact Weapon Powered Hammer Build | -11 -10 -9 -9 -9 -8 -8 -7 -7 -7 -5 -5 -5 -4 -3 -3 -2 -1 ------- Run | Jun Mat Mat Min Exi Min Mat Fac Sto Rec Fac Upp Upp Fac Res DSF Res Acc Slots Evolved 18 | . . 2 . . . 2 2 . . 4 . . 2 2 . 2 2 Power 1 | . . . . . . . . . . . . . 1 . . . . Propulsion 4 | . . 2 . . . . . . . 2 . . . . . . . Utility 10 | . . . . . . 1 1 . . 2 . . . 2 . 2 2 Weapon 3 | . . . . . . 1 1 . . . . . 1 . . . . Parts Attached 147 | 2 6 4 7 . . 18 13 14 5 6 1 1 5 . 7 4 54 Power 17 | . 1 . . . . 3 1 1 . 1 . . . . 2 2 6 Engine 3 | . 1 . . . . 1 1 . . . . . . . . . . Core 4 | . . . . . . 2 . 1 . 1 . . . . . . . Reactor 10 | . . . . . . . . . . . . . . . 2 2 6 Propulsion 43 | 2 . 3 3 . . 4 6 5 . 1 . . . . 2 1 16 Treads 13 | . . 3 2 . . 2 2 2 . . . . . . 2 . . Leg 15 | 1 . . 1 . . 2 3 . . . . . . . . . 8 Wheel 8 | 1 . . . . . . 1 3 . 1 . . . . . . 2 Hover 5 | . . . . . . . . . . . . . . . . . 5 Flight 2 | . . . . . . . . . . . . . . . . 1 1 Utility 43 | . 3 1 1 . . 2 3 6 3 3 1 . 2 . 1 1 16 Device 30 | . 2 1 . . . 1 2 4 2 2 1 . 2 . 1 1 11 Storage 2 | . 1 . . . . . . . . . . . . . . . 1 Processor 2 | . . . . . . . . . . 1 . . . . . . 1 Hackware . | . . . . . . . . . . . . . . . . . . Protection 9 | . . . 1 . . 1 1 2 1 . . . . . . . 3 Artifact . | . . . . . . . . . . . . . . . . . . Weapon 44 | . 2 . 3 . . 9 3 2 2 1 . 1 3 . 2 . 16 Energy Gun 4 | . . . . . . . . . . . . . . . . . 4 Energy Cannon 3 | . . . . . . . . . . . . . . . . . 3 Ballistic Gun 23 | . 2 . 2 . . 8 3 1 2 1 . . . . . . 4 Ballistic Cannon 6 | . . . 1 . . . . . . . . . 1 . . . 4 Launcher 4 | . . . . . . 1 . . . . . 1 . . 2 . . Special Weapon . | . . . . . . . . . . . . . . . . . . Impact Weapon 4 | . . . . . . . . 1 . . . . 2 . . . 1 Slashing Weapon . | . . . . . . . . . . . . . . . . . . Piercing Weapon . | . . . . . . . . . . . . . . . . . . Special Melee Weapon . | . . . . . . . . . . . . . . . . . . Unidentified Prototypes 4 | . . . . . . 2 . . . . . . . . . 1 1 Corrupted Parts 2 | . . . . . . . . . . . . . . . . . 2 System Corruption 2 | . . . . . . . . . . . . . . . . . 2 Parts Lost 72 | . 2 1 2 . . 5 2 3 1 2 2 . 6 . 11 2 33 Power 8 | . 1 . . . . 1 . . 1 . . . 1 . 1 . 3 Propulsion 26 | . . 1 . . . 3 1 2 . 1 . . 2 . 5 . 11 Utility 19 | . 1 . . . . 1 1 1 . . . . . . 2 2 11 Weapon 19 | . . . 2 . . . . . . 1 2 . 3 . 3 . 8 Highest Loss Streak 23 | . 2 1 1 . . 5 1 1 1 2 2 . 3 . 11 2 23 To Critical Strikes 1 | . . . . . . . . . . . . . . . . . 1 Average Slot Usage (%) 80 | . 99 98 99 100 100 92 90 91 85 74 65 64 44 33 25 7 58 Engine 4 | . 13 11 11 11 11 4 1 2 . . . 2 4 . . . . Core 1 | . . . . . . 3 5 4 3 2 4 2 . . . . . Treads 14 | . . 25 34 44 44 27 15 13 15 11 1 . . . 3 . . Leg 8 | . 28 17 9 . . 2 7 7 7 5 5 5 2 . 1 . 15 Wheel 2 | . . . . . . . 6 7 7 8 5 5 1 . . . . Device 7 | . 13 11 . . . 9 8 6 7 9 11 11 5 4 3 3 8 Storage 7 | . 14 11 11 11 11 9 7 7 7 5 5 5 5 . . . 2 Processor 1 | . . . . . . . . . . 4 5 5 5 4 4 3 1 Protection 5 | . . . 10 11 11 9 4 8 7 . . . . . . . 6 Ballistic Gun 16 | . 25 22 13 11 11 25 30 29 27 20 6 5 . . . . 1 Ballistic Cannon 3 | . . . 8 11 11 1 . . . 2 9 11 6 4 1 . 4 Impact Weapon 1 | . . . . . . . . . . . . . 9 4 1 . 3 Naked Turns 9 | . . . . . . . . . . . . . . . . 5 4 Heaviest Build 130 | 11 51 49 57 56 56 58 78 78 64 71 72 71 125 85 85 2 130 Greatest Support 182 | 20 20 60 80 80 80 80 60 10 10 20 24 10 32 16 150 3 182 Greatest Overweight (x) 34 | . 2 1 . . . 1 7 7 6 7 7 7 34 5 5 . 2 Average Overweight (x) 2 | . 1 . . . . . 5 6 5 3 6 7 5 5 . . . Largest Inventory Capacity 20 | 8 20 20 20 20 20 20 20 20 20 20 20 20 20 20 5 5 10 Average Capacity 17 | 8 19 20 20 20 20 20 20 20 20 20 20 20 20 8 5 5 7 Most Carried 20 | 6 17 15 20 20 20 20 20 20 20 15 12 12 11 7 5 5 10 Average Carried 14 | 5 12 13 19 19 20 19 19 19 15 12 11 11 8 5 4 4 6 Final Capacity 20 | 8 20 20 20 20 20 20 20 20 20 20 20 20 20 5 5 5 5 Final Carried 20 | 4 15 15 20 20 20 20 20 20 15 12 11 12 8 5 5 5 5 Scrap Engine Consumption 62 | . . . . . . . . . 10 16 7 . 21 . 8 . . Constructs Created 9 | . . . . . . . . . 1 1 3 . 3 . 1 . . Constructs Modified 9 | . . . . . . . . . . . 1 2 5 . 1 . . Class Distribution -------------------- 41% | Mutant 39% | Scavenger-Skirmisher 6% | Skirmisher 4% | Gunner 4% | Scavenger-Tank Dominant Class ---------------- Mutant | -10/Materials Mutant | -9/Materials Mutant | -9/Mines Mutant | -9/Exiles Mutant | -8/Mines Scavenger-Skirmisher | -8/Materials Scavenger-Skirmisher | -7/Factory Scavenger-Skirmisher | -7/Storage Scavenger-Skirmisher | -7/Recycling Scavenger-Skirmisher | -5/Factory Gunner | -5/Upper Caves Scavenger-Gunner | -5/Upper Caves Skirmisher | -4/Factory Skirmisher | -3/Research Mutant | -3/DSF Mutant | -2/Research Mutant | -1/Access Resources | -11 -10 -9 -9 -9 -8 -8 -7 -7 -7 -5 -5 -5 -4 -3 -3 -2 -1 ----------- Run | Jun Mat Mat Min Exi Min Mat Fac Sto Rec Fac Upp Upp Fac Res DSF Res Acc Matter Collected 5385 | 200 169 56 328 . . 504 487 901 402 348 218 27 229 . 60 . 1456 Remotely 1340 | . . . . . . . . 96 128 248 . . 20 . 56 . 792 Salvage Created 6161 | . 360 56 271 . . 472 621 879 73 345 109 48 1453 . 126 . 1348 Parts 294 | . 24 4 18 . . 26 32 46 4 12 4 1 46 . 5 . 72 Haulers Intercepted 2 | . . . . . . 1 . . . . . . 1 . . . . Recyclers Shooed 1 | . . . . . . . . 1 . . . . . . . . . Parts Field Recycled . | . . . . . . . . . . . . . . . . . . Retrieved Matter . | . . . . . . . . . . . . . . . . . . Parts Self-Destructed 4 | . . . . . . . . . . . 4 . . . . . . Prevented . | . . . . . . . . . . . . . . . . . . Kills | -11 -10 -9 -9 -9 -8 -8 -7 -7 -7 -5 -5 -5 -4 -3 -3 -2 -1 ------- Run | Jun Mat Mat Min Exi Min Mat Fac Sto Rec Fac Upp Upp Fac Res DSF Res Acc Combat Hostiles Destroyed 119 | . 11 1 8 . . 11 11 17 2 9 3 3 13 . 2 . 28 Melee 2 | . . . . . . . . . . . . . . . . . 2 Guns 63 | . 11 1 5 . . 10 11 17 2 3 1 1 . . . . 1 Cannons 45 | . . . 3 . . 1 . . . 2 2 . 12 . 1 . 24 AOE 9 | . . . . . . . . . . 4 . 2 1 . 1 . 1 Classes Destroyed 17 | . 2 1 1 . . 3 4 . . 1 . . 5 . . . . Worker 9 | . . . . . . . 2 . . . . . 7 . . . . Builder 5 | . . . . . . . . . . . . . 5 . . . . Tunneler 2 | . . . . . . . 1 . . . . . . . . . 1 Hauler 2 | . . . . . . 1 . . . . . . 1 . . . . Recycler 6 | . . . . . . . . . . . . . 4 . . . 2 Mechanic 1 | . . . . . . . . . . . . . 1 . . . . Watcher 5 | . . . . . . 1 1 1 . . . . 2 . . . . Swarmer 26 | . 3 . . . . 4 . . . 5 . 2 1 . . . 11 Grunt 54 | . 8 . 7 . . 5 9 11 1 2 . . 5 . . . 6 Brawler 1 | . . . 1 . . . . . . . . . . . . . . Duelist 2 | . . . . . . . 1 . . 1 . . . . . . . Sentry 11 | . . 1 . . . 1 . 5 1 1 . 1 . . . . 1 Specialist 6 | . . . . . . . . . . . . . 4 . 2 . . Hunter 3 | . . . . . . 1 . . . . 2 . . . . . . Programmer 14 | . . . . . . . 1 1 . . . . 2 . . . 10 Heavy 1 | . . . . . . . . . . . . . 1 . . . . Behemoth 2 | . . . . . . . . . . 1 1 . . . . . . Best Kill Streak 10 | . 3 1 3 . . 5 4 8 1 6 2 3 10 . 1 . 8 Combat Bots Only 7 | . 3 1 3 . . 5 4 7 1 6 2 3 7 . 1 . 6 Max Kills in Single Turn 4 | . 1 1 1 . . 2 2 1 1 4 1 1 2 . 1 . 2 Gunslinging 1 | . . . . . . 1 1 . . . . . . . . . . Exploded 3 | . . . . . . . . . . 3 . 1 1 . 1 . 1 Melee 1 | . . . . . . . . . . . . . . . . . 1 Uniques/NPCs Destroyed . | . . . . . . . . . . . . . . . . . . Combat | -11 -10 -9 -9 -9 -8 -8 -7 -7 -7 -5 -5 -5 -4 -3 -3 -2 -1 -------- Run | Jun Mat Mat Min Exi Min Mat Fac Sto Rec Fac Upp Upp Fac Res DSF Res Acc Damage Taken 19589 | . 443 189 485 . . 735 689 912 181 770 591 355 1538 . 3284 546 8871 Core 3867 | . 88 14 36 . . 23 61 98 15 86 188 14 200 . 918 514 1612 Absorbed by Shields 329 | . . . . . . . . . . . . . . . . . 329 Regen/Repaired (Parts) 463 | . . . . . . . . . 16 56 128 50 213 . . . . Core Remaining (%) 74 | 100 64 . . . 87 95 . . 75 . . 71 82 . 29 64 . Volleys Fired 308 | . 31 5 31 . . 49 28 52 5 13 13 5 10 . 4 . 62 Largest 4 | . 2 2 2 . . 3 4 4 4 4 4 3 2 . 2 . 4 Hottest 271 | . 40 40 68 . . 88 103 103 107 125 125 119 91 . 92 . 271 Shots Fired 946 | . 62 10 60 . . 147 112 189 20 52 40 9 63 . 26 . 156 Gun 705 | . 62 10 47 . . 145 112 189 20 44 19 2 10 . 2 . 43 Cannon 232 | . . . 13 . . 2 . . . 8 21 4 53 . 18 . 113 Launcher 9 | . . . . . . . . . . . . 3 . . 6 . . Special . | . . . . . . . . . . . . . . . . . . Kinetic 909 | . 62 10 60 . . 147 112 189 20 52 40 6 63 . 20 . 128 Thermal 17 | . . . . . . . . . . . . . . . . . 17 Explosive 9 | . . . . . . . . . . . . 3 . . 6 . . Electromagnetic 11 | . . . . . . . . . . . . . . . . . 11 Robot Hit Streak 16 | . 10 7 11 . . 11 10 16 5 7 5 4 11 . 6 . 8 Robot Miss Streak 11 | . 3 2 2 . . 4 5 6 4 11 6 2 2 . 1 . 4 Penetration Max 1 | . . . . . . . . . . 1 . . . . . . . Secondary Targets 8 | . 1 . 2 . . 2 1 2 . . . . . . . . . Max Gunslinging Chain 1 | . 1 . 1 . . 1 1 1 . . . . . . . . . Autonomous 63 | . . . . . . . . . . . . . 45 . 18 . . Shots Hit Robots 651 | . 41 8 46 . . 101 66 123 17 31 26 6 66 . 21 . 99 Core Hits 355 | . 22 3 18 . . 39 35 65 16 46 16 10 22 . 10 . 53 Critical Kills 1 | . . . . . . . . . . . 1 . . . . . . Critical Parts Destroyed 15 | . . . 2 . . 1 1 . . . 2 1 7 . . . 1 Critical Strikes 24 | . . . 2 . . 1 1 . . . 3 1 8 . . . 8 Burn 1 | . . . . . . . . . . . . . . . . . 1 Destroy 11 | . . . 2 . . 1 1 . . . 3 1 3 . . . . Blast 7 | . . . . . . . . . . . . . 1 . . . 6 Smash 5 | . . . . . . . . . . . . . 4 . . . 1 Melee Attacks 55 | . . . . . . . . 1 . . . . 22 . . . 32 Impact 55 | . . . . . . . . 1 . . . . 22 . . . 32 Slashing . | . . . . . . . . . . . . . . . . . . Piercing . | . . . . . . . . . . . . . . . . . . Sneak Attacks 13 | . . . . . . . . . . . . . 13 . . . . Combat Hostiles . | . . . . . . . . . . . . . . . . . . Follow-up Attacks 1 | . . . . . . . . . . . . . 1 . . . . Damage Inflicted 17948 | . 412 82 672 . . 1003 1108 2182 353 1057 510 377 4781 . 1356 . 4055 Guns 6999 | . 412 82 389 . . 946 1108 2182 353 525 197 36 168 . 33 . 568 Cannons 7726 | . . . 264 . . 57 . . . 110 313 55 2952 . 914 . 3061 Explosions 1388 | . . . . . . . . . . 422 . 286 165 . 409 . 106 Melee 1812 | . . . . . . . . . . . . . 1496 . . . 316 Ramming 23 | . . . 19 . . . . . . . . . . . . . 4 Kinetic 14441 | . 412 82 653 . . 1003 1108 2182 353 635 510 91 3120 . 947 . 3345 Thermal 463 | . . . . . . . . . . 290 . . . . . . 173 Explosive 966 | . . . . . . . . . . . . 286 165 . 409 . 106 Electromagnetic 243 | . . . . . . . . . . 132 . . . . . . 111 Impact 1812 | . . . . . . . . . . . . . 1496 . . . 316 Slashing . | . . . . . . . . . . . . . . . . . . Piercing . | . . . . . . . . . . . . . . . . . . Highest Corruption 40 | . . . . . . . 2 2 2 1 1 1 2 . 8 . 40 Average Corruption 6 | . . . . . . . 1 2 2 1 1 1 1 . 6 . 17 Corruption Purged . | . . . . . . . . . . . . . . . . . . Corruption Blocked . | . . . . . . . . . . . . . . . . . . Effects 89 | . . . . . . . 4 12 7 1 . 2 2 . 4 . 57 Message Errors 17 | . . . . . . . 2 3 2 . . 1 1 . 1 . 7 Matter Fused 24 | . . . . . . . . 3 2 . . . . . . . 19 Heat Flow Errors 9 | . . . . . . . 1 2 2 . . . . . . . 4 Energy Discharges 11 | . . . . . . . 1 1 . 1 . 1 1 . 1 . 5 Parts Rejected 3 | . . . . . . . . . . . . . . . 1 . 2 Parts Fused 1 | . . . . . . . . . . . . . . . . . 1 Data Loss (minor) 9 | . . . . . . . . 2 1 . . . . . . . 6 Data Loss (major) 1 | . . . . . . . . 1 . . . . . . . . . Misfires 3 | . . . . . . . . . . . . . . . . . 3 Alerts 2 | . . . . . . . . . . . . . . . 1 . 1 Misdirections 4 | . . . . . . . . . . . . . . . . . 4 Weapon Failures 5 | . . . . . . . . . . . . . . . . . 5 Overload Shots . | . . . . . . . . . . . . . . . . . . Overflow Damage 1201 | . . . 28 . . . . . . 26 . 17 1031 . . . 99 Projectiles 390 | . . . 28 . . . . . . . . . 310 . . . 52 Explosions 43 | . . . . . . . . . . 26 . 17 . . . . . Melee 768 | . . . . . . . . . . . . . 721 . . . 47 Knockbacks 69 | . . . 2 . . . . . . . 3 . 28 . 3 . 33 Impact 7 | . . . . . . . . . . . . . 7 . . . . Kinetic 54 | . . . 2 . . . . . . . 3 . 17 . 3 . 29 Secondary 8 | . . . . . . . . . . . . . 4 . . . 4 Self-Inflicted Damage 461 | . . . . . . . . . . 187 . . 51 . 136 . 87 Shots 10 | . . . . . . . . . . 4 . . 1 . 4 . 1 Rammed 2 | . . . 1 . . . . . . . . . . . . . 1 Targets Rammed 3 | . . . 1 . . . . . . . . . . . . . 2 Kicked 1 | . . . . . . . . . . . . . . . . . 1 Crushed . | . . . . . . . . . . . . . . . . . . Highest Temperature 540 | . 18 . 224 . . 23 170 242 220 96 111 1 36 . 1 . 540 Average Temperature 114 | . 7 . 93 . . 7 28 79 85 30 45 1 16 . 1 . 172 Received Heat Transfer 2180 | . 204 36 225 . . 162 204 327 63 48 48 45 93 . 329 63 333 Effects 11 | . . . . . . . . . . . . . . . . . 11 Shutdowns 7 | . . . . . . . . . . . . . . . . . 7 Energy Bleed 1 | . . . . . . . . . . . . . . . . . 1 Interference 1 | . . . . . . . . . . . . . . . . . 1 Damage (minor) 1 | . . . . . . . . . . . . . . . . . 1 Damage (major) 1 | . . . . . . . . . . . . . . . . . 1 Siege Activations . | . . . . . . . . . . . . . . . . . . Robots Corrupted . | . . . . . . . . . . . . . . . . . . Combat Hostiles . | . . . . . . . . . . . . . . . . . . Parts Fried 15 | . . . . . . . . . . 1 . . 14 . . . . Impact Corruptions 27 | . . . . . . . . . . . . . 26 . . . 1 Robots Melted . | . . . . . . . . . . . . . . . . . . Combat Hostiles . | . . . . . . . . . . . . . . . . . . Parts Melted 1 | . . . . . . . . . . . . . . . . . 1 Heat Transferred 620 | . . . . . . . . . . 250 . . . . . . 370 Parts Sabotaged . | . . . . . . . . . . . . . . . . . . Parts Stolen . | . . . . . . . . . . . . . . . . . . Parts Stripped . | . . . . . . . . . . . . . . . . . . Power Chain Reactions 2 | . . . . . . . . . . 2 . . . . . . . Missiles Intercepted . | . . . . . . . . . . . . . . . . . . Alert | -11 -10 -9 -9 -9 -8 -8 -7 -7 -7 -5 -5 -5 -4 -3 -3 -2 -1 ------- Run | Jun Mat Mat Min Exi Min Mat Fac Sto Rec Fac Upp Upp Fac Res DSF Res Acc Peak Influence 464 | . 140 96 226 . . 185 215 413 98 449 . . 394 206 229 140 464 Initial 206 | . . 54 37 . . . . 75 79 40 . . 99 206 158 96 80 Average 129 | . 42 74 59 . . 87 85 265 90 174 . . 188 206 182 99 225 Maximum Alert Level 2 | . . . 1 . . . 1 2 . 2 . . 1 1 1 . 2 Low Security (%) 76 | 100 100 100 96 . 100 100 99 11 100 57 . . 64 . 68 100 46 Level 1 19 | . . . 3 . . . . 81 . 23 . . 35 100 31 . 38 Level 2 3 | . . . . . . . . 7 . 18 . . . . . . 15 Level 3 . | . . . . . . . . . . . . . . . . . . Level 4 . | . . . . . . . . . . . . . . . . . . Level 5 . | . . . . . . . . . . . . . . . . . . High Security . | . . . . . . . . . . . . . . . . . . Max Security . | . . . . . . . . . . . . . . . . . . Squads Dispatched 25 | . 2 . . . . . 5 1 . 2 . . 5 . 3 1 6 Investigation 4 | . 2 . . . . . . . . . . . . . . . 2 Extermination 7 | . . . . . . . 1 1 . . . . 1 . . . 4 Reinforcement 10 | . . . . . . . 1 . . 2 . . 3 . 3 1 . Assault . | . . . . . . . . . . . . . . . . . . Garrison 4 | . . . . . . . 3 . . . . . 1 . . . . Intercept . | . . . . . . . . . . . . . . . . . . Searches Triggered . | . . . . . . . . . . . . . . . . . . Construction Impeded 1 | . . . . . . . . . . 1 . . . . . . . Haulers Reinforced . | . . . . . . . . . . . . . . . . . . Active Scanning Responses . | . . . . . . . . . . . . . . . . . . Cargo Convoy Interrupts . | . . . . . . . . . . . . . . . . . . Stealth | -11 -10 -9 -9 -9 -8 -8 -7 -7 -7 -5 -5 -5 -4 -3 -3 -2 -1 --------- Run | Jun Mat Mat Min Exi Min Mat Fac Sto Rec Fac Upp Upp Fac Res DSF Res Acc Distress Signals 10 | . 1 . . . . 2 1 1 . 2 . . 2 . . . 1 Communications Jammed . | . . . . . . . . . . . . . . . . . . Distress Signals . | . . . . . . . . . . . . . . . . . . Times Spotted 193 | . 13 3 13 . . 17 17 20 2 14 3 3 17 . 15 10 46 Peak Tracking Total 15 | . 5 3 9 . . 5 4 5 2 7 2 3 6 . 11 8 15 Tactical Retreats 5 | . . . . . . 1 . 1 . . . . . . 2 1 . Traps | -11 -10 -9 -9 -9 -8 -8 -7 -7 -7 -5 -5 -5 -4 -3 -3 -2 -1 ------- Run | Jun Mat Mat Min Exi Min Mat Fac Sto Rec Fac Upp Upp Fac Res DSF Res Acc Traps Triggered 8 | . 2 . . . . . 1 2 . . . . 1 . 1 . 1 Indirectly . | . . . . . . . . . . . . . . . . . . Trap Hack Attempts . | . . . . . . . . . . . . . . . . . . Triggered . | . . . . . . . . . . . . . . . . . . Disarmed . | . . . . . . . . . . . . . . . . . . Reprogrammed . | . . . . . . . . . . . . . . . . . . Reused . | . . . . . . . . . . . . . . . . . . Traps Extracted . | . . . . . . . . . . . . . . . . . . Installed . | . . . . . . . . . . . . . . . . . . Triggered . | . . . . . . . . . . . . . . . . . . Machines | -11 -10 -9 -9 -9 -8 -8 -7 -7 -7 -5 -5 -5 -4 -3 -3 -2 -1 ---------- Run | Jun Mat Mat Min Exi Min Mat Fac Sto Rec Fac Upp Upp Fac Res DSF Res Acc Machines Disabled 11 | . . . . . . . . . . 8 . . 1 . 1 . 1 Max in Single Turn 6 | . . . . . . . . . . 6 . . 1 . 1 . 1 Machines Repaired . | . . . . . . . . . . . . . . . . . . Machines Sabotaged . | . . . . . . . . . . . . . . . . . . Overloaded Fab Kills . | . . . . . . . . . . . . . . . . . . Hacking | -11 -10 -9 -9 -9 -8 -8 -7 -7 -7 -5 -5 -5 -4 -3 -3 -2 -1 --------- Run | Jun Mat Mat Min Exi Min Mat Fac Sto Rec Fac Upp Upp Fac Res DSF Res Acc Machines Accessed 22 | . 3 2 . 1 . 2 3 2 1 1 . . . 1 . 3 3 Terminals 20 | . 3 2 . . . 2 3 2 1 1 . . . 1 . 3 2 Fabricators . | . . . . . . . . . . . . . . . . . . Repair Stations . | . . . . . . . . . . . . . . . . . . Recycling Units . | . . . . . . . . . . . . . . . . . . Scanalyzers . | . . . . . . . . . . . . . . . . . . Garrison Access 1 | . . . . . . . . . . . . . . . . . 1 Total Hacks 39 | . 9 5 . 1 . 3 3 3 1 1 . . . 1 . 8 4 Successful 11 | . 4 2 . 1 . . . . 1 . . . . 1 . 2 . Failed 28 | . 5 3 . . . 3 3 3 . 1 . . . . . 6 4 Catastrophic 7 | . . 2 . . . 1 . 1 . . . . . . . 1 2 Database Lockouts . | . . . . . . . . . . . . . . . . . . Manual 28 | . 9 5 . 1 . 2 2 4 1 1 . . . . . . 3 Terminals 37 | . 9 5 . . . 3 3 3 1 1 . . . 1 . 8 3 Fabricators . | . . . . . . . . . . . . . . . . . . Repair Stations . | . . . . . . . . . . . . . . . . . . Recycling Units . | . . . . . . . . . . . . . . . . . . Scanalyzers . | . . . . . . . . . . . . . . . . . . Garrison Access 1 | . . . . . . . . . . . . . . . . . 1 Terminal Hacks 8 | . 2 1 . 1 . . . . 1 . . . . 1 . 2 . Robot Analysis 2 | . 2 . . . . . . . . . . . . . . . . Open DSF 2 | . . . . . . . . . . . . . . 1 . 1 . Level Access Points 1 | . . . . . . . . . 1 . . . . . . . . Branch Access Points 1 | . . 1 . . . . . . . . . . . . . . . Zone Layout 1 | . . . . . . . . . . . . . . . . 1 . EX-Prototype ID Bank 1 | . . . . 1 . . . . . . . . . . . . . Fabricator Hacks . | . . . . . . . . . . . . . . . . . . Repair Station Hacks . | . . . . . . . . . . . . . . . . . . Recycling Unit Hacks . | . . . . . . . . . . . . . . . . . . Scanalyzer . | . . . . . . . . . . . . . . . . . . Garrison Access Hacks . | . . . . . . . . . . . . . . . . . . Unauthorized Hacks 3 | . 2 1 . . . . . . . . . . . . . . . Terminals 3 | . 2 1 . . . . . . . . . . . . . . . Botnet 3 | . 2 1 . . . . . . . . . . . . . . . Fabricators . | . . . . . . . . . . . . . . . . . . Repair Stations . | . . . . . . . . . . . . . . . . . . Recycling Units . | . . . . . . . . . . . . . . . . . . Scanalyzers . | . . . . . . . . . . . . . . . . . . Garrison Access . | . . . . . . . . . . . . . . . . . . Data Cores Recovered . | . . . . . . . . . . . . . . . . . . Used . | . . . . . . . . . . . . . . . . . . Hacking Detections 16 | . 2 2 . . . 2 2 2 . . . . . . . 3 3 Full Trace Events 1 | . . . . . . . . . . . . . . . . . 1 Feedback Events . | . . . . . . . . . . . . . . . . . . Feedback Blocked . | . . . . . . . . . . . . . . . . . . Robot Schematics Acquired . | . . . . . . . . . . . . . . . . . . Robots Built . | . . . . . . . . . . . . . . . . . . Authchips . | . . . . . . . . . . . . . . . . . . Time . | . . . . . . . . . . . . . . . . . . Total Robot Build Rating . | . . . . . . . . . . . . . . . . . . Part Schematics Acquired . | . . . . . . . . . . . . . . . . . . Parts Built . | . . . . . . . . . . . . . . . . . . Authchips . | . . . . . . . . . . . . . . . . . . Time . | . . . . . . . . . . . . . . . . . . Total Part Build Rating . | . . . . . . . . . . . . . . . . . . Parts Repaired . | . . . . . . . . . . . . . . . . . . Time . | . . . . . . . . . . . . . . . . . . Parts Recycled . | . . . . . . . . . . . . . . . . . . Recycled Matter . | . . . . . . . . . . . . . . . . . . Retrieved Matter . | . . . . . . . . . . . . . . . . . . Retrieved Components . | . . . . . . . . . . . . . . . . . . Parts Scanalyzed . | . . . . . . . . . . . . . . . . . . Part Schematics Acquired . | . . . . . . . . . . . . . . . . . . Parts Damaged . | . . . . . . . . . . . . . . . . . . Bothacking | -11 -10 -9 -9 -9 -8 -8 -7 -7 -7 -5 -5 -5 -4 -3 -3 -2 -1 ------------ Run | Jun Mat Mat Min Exi Min Mat Fac Sto Rec Fac Upp Upp Fac Res DSF Res Acc Used RIF Installer . | . . . . . . . . . . . . . . . . . . Robots Hacked . | . . . . . . . . . . . . . . . . . . Non-combat . | . . . . . . . . . . . . . . . . . . Combat . | . . . . . . . . . . . . . . . . . . Robot Hacks Applied . | . . . . . . . . . . . . . . . . . . Relay Couplers Released . | . . . . . . . . . . . . . . . . . . Fabnet Peak Effective % . | . . . . . . . . . . . . . . . . . . Robots Rewired 7 | . . . . . . . . . 7 . . . . . . . . Allies Hacked . | . . . . . . . . . . . . . . . . . . Hacks Repelled . | . . . . . . . . . . . . . . . . . . Allies | -11 -10 -9 -9 -9 -8 -8 -7 -7 -7 -5 -5 -5 -4 -3 -3 -2 -1 -------- Run | Jun Mat Mat Min Exi Min Mat Fac Sto Rec Fac Upp Upp Fac Res DSF Res Acc Total Allies 8 | . . . 1 . . . . . 7 . . . . . . . . Largest Group 6 | . . . 1 . . . . . 6 6 . . . . . . . Highest-Rated Group 154 | . . . 31 . . . . . 154 154 . . . . . . . Highest-Rated Ally 34 | . . . 31 . . . . . 34 34 . . . . . . . Total Orders 5 | . . . . . . . . . . 2 3 . . . . . . EXPLORE 5 | . . . . . . . . . . 2 3 . . . . . . Ally Attacks 14 | . . . 4 . . . . . . 10 . . . . . . . Total Damage 441 | . . . 41 . . . . . . 400 . . . . . . . Kills 4 | . . . 1 . . . . . . 3 . . . . . . . Allies Corrupted . | . . . . . . . . . . . . . . . . . . Allies Melted . | . . . . . . . . . . . . . . . . . . Intel | -11 -10 -9 -9 -9 -8 -8 -7 -7 -7 -5 -5 -5 -4 -3 -3 -2 -1 ------- Run | Jun Mat Mat Min Exi Min Mat Fac Sto Rec Fac Upp Upp Fac Res DSF Res Acc Robot Analysis Total 2 | . 2 . . . . . . . . . . . . . . . . Derelict Logs Recovered 3 | . . . 1 . . . . . . . 1 1 . . . . . Drone Launches 5 | . . . . . . . . . . 2 3 . . . . . . Drone Recoveries 3 | . . . . . . . . . . 2 1 . . . . . . Exploration | -11 -10 -9 -9 -9 -8 -8 -7 -7 -7 -5 -5 -5 -4 -3 -3 -2 -1 ------------- Run | Jun Mat Mat Min Exi Min Mat Fac Sto Rec Fac Upp Upp Fac Res DSF Res Acc Turns Passed 9006 | 4 761 293 1029 365 264 870 1103 824 356 317 516 95 609 5 171 159 1265 Spaces Moved 4084 | 1 212 119 565 227 147 280 507 298 172 187 235 44 135 2 105 144 704 Core 244 | . . . . . . . . . . . . . 3 . 33 144 64 Treads 1424 | . . 119 565 227 147 280 51 . . . . . . . 35 . . Legs 722 | 1 212 . . . . . . . . . . . 45 . 16 . 448 Wheels 1459 | . . . . . . . 456 298 172 187 225 44 51 . 20 . 6 Hover 186 | . . . . . . . . . . . . . . . . . 186 Flight 49 | . . . . . . . . . . . 10 . 36 2 1 . . Fastest Speed 48 | 120 120 160 160 160 160 160 155 170 155 110 170 185 185 310 50 50 48 Average Speed 166 | 120 257 203 160 160 160 196 166 183 161 139 187 185 361 310 137 50 115 Slowest Speed 1750 | 120 260 240 160 160 160 240 240 185 170 185 248 185 1750 310 310 50 260 Overloaded Moves . | . . . . . . . . . . . . . . . . . . Propulsion Burnouts . | . . . . . . . . . . . . . . . . . . Robots Hopped . | . . . . . . . . . . . . . . . . . . Cave-ins Triggered 1 | . . . . . . . . . . . . . . . . . 1 Exploration Rate (%) 35 | 2 33 14 81 60 42 26 20 46 43 7 88 15 5 . 87 6 20 Regions Visited 17 Branch Regions 7 Pre-discovered Areas . | . . . . . . . . . . . . . . . . . . Known Exits Taken 4 | . . 1 . . . . . . 1 . . 1 . 1 . . . Unknown Exits Taken 12 | 1 1 . 1 1 1 1 1 1 . 1 1 . 1 . . 1 . Scrap Searched 4 | . . . 2 . . . . . . . 1 1 . . . . . Spaces Dug 25 | . . . . . . . . 1 . . . . . . . . 24 Terrain Destroyed 235 | . . . 6 . . . . 1 . 53 2 26 50 . 20 . 77 Melee 25 | . . . . . . . . 1 . . . . . . . . 24 Projectile 63 | . . . 6 . . . . . . . 2 2 15 . 6 . 32 AOE 147 | . . . . . . . . . . 53 . 24 35 . 14 . 21 Terrain Rammed . | . . . . . . . . . . . . . . . . . . Walls Destroyed . | . . . . . . . . . . . . . . . . . . Machines Disabled . | . . . . . . . . . . . . . . . . . . Actions | -11 -10 -9 -9 -9 -8 -8 -7 -7 -7 -5 -5 -5 -4 -3 -3 -2 -1 --------- Run | Jun Mat Mat Min Exi Min Mat Fac Sto Rec Fac Upp Upp Fac Res DSF Res Acc Total 5650 | 4 374 160 637 230 176 517 732 503 242 217 285 51 207 4 123 230 958 Wait 855 | . 111 30 15 . 30 147 169 122 21 7 33 . 34 . . 80 56 Move 4067 | . 211 118 564 226 146 279 506 297 171 186 234 43 134 1 104 143 704 Hop . | . . . . . . . . . . . . . . . . . . Pick Up 78 | . 13 2 11 1 . 11 5 6 . 1 . 1 1 . 3 . 23 Fast Attach 56 | . 2 1 2 . . 5 3 5 1 1 . . . . 4 2 30 Attach 56 | 1 2 2 2 . . 4 2 3 2 5 1 1 5 . 2 2 22 Detach 16 | . . . 1 . . . . 1 . 2 . 1 2 . 1 2 6 Swap 35 | 1 2 1 3 . . 9 8 6 2 . . . . . 1 . 2 Drop 90 | 2 2 1 7 3 . 13 11 10 7 2 4 . 1 3 4 1 19 Fire 308 | . 31 5 31 . . 49 28 52 5 13 13 5 10 . 4 . 62 Melee 53 | . . . . . . . . 1 . . . . 20 . . . 32 Ram 1 | . . . . . . . . . . . . . . . . . 1 Kick 1 | . . . . . . . . . . . . . . . . . 1 Crush 1 | . . . 1 . . . . . . . . . . . . . . Escape Stasis . | . . . . . . . . . . . . . . . . . . Rewire 33 | . . . . . . . . . 33 . . . . . . . . Trap . | . . . . . . . . . . . . . . . . . . Miscellaneous . | . . . . . . . . . . . . . . . . . . Route ------- -11/Junkyard -10/Materials -9/Materials (discovered 2 exits: *Min x2) -9/Mines (discovered 3 exits: *Mat x2 / *Exi) -9/Exiles -8/Mines -8/Materials -7/Factory -7/Storage -7/Recycling -5/Factory -5/Upper Caves -5/Upper Caves -4/Factory -3/Research -3/DSF -2/Research -1/Access History --------- Turn | Location | Event 5 | -11/Junkyard | Discovered new exit (range 0) 5 | -11/Junkyard | Entered Materials 312 | -10/Materials | Build established: Mutant 518 | -10/Materials | Discovered new exit (range 16) 766 | -10/Materials | Entered another Materials area 766 | -9/Materials | Evolved 2 slots: Propulsion x2 802 | -9/Materials | Identified exit to Mines 1059 | -9/Materials | Entered Mines 1169 | -9/Mines | Learned Materials emergency access door positions 1296 | -9/Mines | A weapon hastily lodged in a ceiling crevice suddenly fell to the ground 1460 | -9/Mines | Escorted by a lone wolf Derelict 1526 | -9/Mines | Assembled infested the area 1845 | -9/Mines | Discovered new exit (range 15) 1884 | -9/Mines | Discovered new exit (range 4) 2082 | -9/Mines | Discovered new exit (range 5) 2088 | -9/Mines | Entered Exiles 2130 | -9/Exiles | Met 8R-AWN 2157 | -9/Exiles | Met EX-HEX 2208 | -9/Exiles | Met EX-BIN 2226 | -9/Exiles | Aligned with FarCom system 2228 | -9/Exiles | Given EX-Vault access code 2271 | -9/Exiles | Opened EX-Vault 2284 | -9/Exiles | Found AWS/Autocannon 2317 | -9/Exiles | Warned to stay clear of 0b10 Research branches 2363 | -9/Exiles | Met EX-DEC 2435 | -9/Exiles | Discovered new exit (range 14) 2453 | -9/Exiles | Left Exiles lab with AWS/Autocannon 2453 | -9/Exiles | Entered Mines 2708 | -8/Mines | Discovered new exit (range 5) 2717 | -8/Mines | Entered Materials 2717 | -8/Materials | Evolved 2 slots: Utility x1, Weapon x1 3015 | -8/Materials | Build established: Scavenger-Skirmisher 3164 | -8/Materials | Lost 5 parts (1p3n1u) 3537 | -8/Materials | Discovered new exit (range 16) 3587 | -8/Materials | Entered Factory 3587 | -7/Factory | Evolved 2 slots: Utility x1, Weapon x1 4012 | -7/Factory | Garrison activated, responded to threat 4672 | -7/Factory | Discovered new exit (range 6) 4690 | -7/Factory | Entered Storage 4829 | -7/Storage | Destroyed 7 combat bots 5507 | -7/Storage | Used back door to open Recycling access 5507 | -7/Storage | Discovered new exit (range 5) 5514 | -7/Storage | Entered Recycling 5515 | -7/Recycling | Found Scrap Engine 5586 | -7/Recycling | Identified exit to Factory 5870 | -7/Recycling | Entered Factory 5870 | -5/Factory | Accompanied by 6 allies 5870 | -5/Factory | Evolved 4 slots: Propulsion x2, Utility x2 6032 | -5/Factory | Discovered new exit (range 26) 6038 | -5/Factory | Spotted B-75 Beast 6058 | -5/Factory | Destroyed B-75 Beast 6187 | -5/Factory | Entered Upper Caves 6243 | -5/Upper Caves | Spotted B-75 Beast 6277 | -5/Upper Caves | Destroyed B-75 Beast 6418 | -5/Upper Caves | Encountered a Warlord checkpoint 6543 | -5/Upper Caves | Learned Factory emergency access door positions 6578 | -5/Upper Caves | Build established: Gunner 6598 | -5/Upper Caves | Discovered new exit (range 8) 6703 | -5/Upper Caves | Entered another Upper Caves area 6705 | -5/Upper Caves | Attracted the attention of an 0b10 checkpoint 6758 | -5/Upper Caves | Identified exit to Factory 6798 | -5/Upper Caves | Entered Factory 6798 | -4/Factory | Evolved 2 slots: Power x1, Weapon x1 7024 | -4/Factory | Garrison activated, responded to threat 7072 | -4/Factory | Discovered new exit (range 6) 7313 | -4/Factory | Build established: Skirmisher 7318 | -4/Factory | Lost 3 parts (1p1n1w) 7327 | -4/Factory | Destroyed 7 combat bots 7407 | -4/Factory | Entered Research 7407 | -3/Research | Evolved 2 slots: Utility x2 7412 | -3/Research | Identified exit to DSF 7412 | -3/Research | Entered DSF 7441 | -3/DSF | Additional patrols routed to DSF 7575 | -3/DSF | Discovered new exit (range 16) 7576 | -3/DSF | Core integrity fell below 50% 7583 | -3/DSF | Entered Research 7583 | -2/Research | Evolved 2 slots: Utility x2 7593 | -2/Research | Lost 11 parts (1p5n2u3w) 7736 | -2/Research | Discovered new exit (range 12) 7742 | -2/Research | Entered Access 7742 | -1/Access | Evolved 2 slots: Utility x2 7804 | -1/Access | Build established: Mutant 7934 | -1/Access | Crushed by falling debris 8241 | -1/Access | System corruption reached 10% 8785 | -1/Access | Lost 3 parts (3u) 8878 | -1/Access | System corruption reached 30% 8977 | -1/Access | Core integrity fell below 50% 8990 | -1/Access | Core integrity fell below 20% 9007 | -1/Access | Destroyed by S-43 Plague with Heavy Machine Gun Last Messages --------------- 08976_ Penetrated by Slug. 08976_ Dropped Med. Matter Pod. 08977_ Dropped Med. Storage Unit. 08978_ Penetrated by Slug. 08978_ Com. Wheel destroyed. 08978_ Penetrated by Slug. 08979_ Slug penetrates Wall. 08979_ Penetrated by Slug. 08979_ K-01 Serf destroyed. 08979_ Slug penetrates Wall. 08979_ Penetrated by Slug. 08982_ Slug penetrates Wall. 08982_ Penetrated by Slug. 08982_ Slammed into H-88 Terminator. 08983_ System corrupted: Matter fused (-8). 08984_ Slug penetrates T-07 Excavator. 08984_ T-07 Excavator destroyed. 08996_ U-05 Engineer suffers critical hit (Destroy). 08996_ U-05 Engineer destroyed. 09005_ K-01 Serf destroyed. Map ----- +----------------------------------------------------+ | ????????# #????????????????????????????????? | | ????????# ==#????????????????????????????????? | | ????????# *%##########+####??????????????????? | | ????????# !| #??????????????????? | | ????????# #??????????????????? | | ????????# #??????????????????? | | ????????+ #??????????????????? | | ????????# #??????????????????? | | ????????# #??????????????????? | | ????????# #??????????????????? | | ????????###############s #??????????????????? | | ??????????????????????#psk #??????????????????? | | ??????????????????????# #??????????????????? | | ??????????????????????# s #??????????????????? | | ??????????????????????# s #??????????????????? | | ??????????????????????# k #??????????????????? | | ??????????????????????# s #??????????????????? | | ??????????????????????### R ##??????????????????? | | ????????????????????????# #???????????????????? | | ????????????????????????# #???????????????????? | | ????????????????????????# #???????????????????? | | ????????????????????????# #???????????????????? | | ????????????????????????# #???????????????????? | | ????????????????????????# #???????????????????? | | ????????????????????????# #???????????????????? | | ????????????????????????#@ #???????????????????? | | ????????????????????????# #???????????????????? | | ????????????????????????# #???????????????????? | | ????????????????????????# #???????????????????? | | ????????????????????????# #???????????????????? | | ????????????????????????# #???????????????????? | | ????????????????????????# #???????????????????? | | ???????????????????????? ???????????????????? | | ???????????????????????? ??????????????????? | | ???????????????????????? ##??????????????????? | | ???????????????????????? ##???????????????????? | | ???????????????????????? #????????????????????? | | ???????????????????????? #????????????????????? | | ????????????????????????## #????????????????????? | | ??????????????????????????u #????????????????????? | | ?????????????????????????? ?????????????????????? | | ?????????????????????????????????????????????????? | | ?????????????????????????????????????????????????? | | ?????????????????????????????????????????????????? | | ?????????????????????????????????????????????????? | | ?????????????????????????????????????????????????? | | ?????????????????????????????????????????????????? | | ?????????????????????????????????????????????????? | | ?????????????????????????????????????????????????? | | ?????????????????????????????????????????????????? | +----------------------------------------------------+ Best States ------------- Heat Dissipation 128 Energy Generation 45 Energy Capacity 600 Matter Stores 300 Matter Capacity 300 Sight Range 16 Terrain Scan Density 10 ECM Strength 1 Armor Coverage 1800 Evasion (%) 55 Target Analysis 8 Core Analysis 6 Recoil Reduction 4 Item Schematics ----------------- None Robot Schematics ------------------ None Fabricated ------------ Nothing Alien Tech Used ----------------- None Achievements -------------- None Challenges ------------ None Game ------ Seed ThiefGatlingBarrier Manual? 0 Play Time 01:22:19 Cumulative 143.0 hours Start 2023.04.19 @ 01:46:16 End 2023.04.19 @ 03:08:02 Sessions 1 Manual Loads 0 Difficulty Rogue Special Mode None Game No. 211 Rogue 211 Adventurer 0 Explorer 0 Win Type - Total 0 Types 0/0/0/0/0/0/0/0/0 Lore% 49 Gallery% 57 Achievement% 43 Wizard Run 0 Options --------- ASCII 0 Keyboard 0 Movement Mouse Keybinds 1 Fullscreen 2 Font 18/SmallcapsGlow Map View 76x50 Tactical HUD 1 Map Filters SATURATION(75) Filters LOW_CONTRAST(23,23,23) Steam 1 RUN: e8a52c1d-8599-44bc-88ce-8536d7d5a6c3